[Event "Late-Titled-Tuesday-Blitz-January-30-2024"]
[Site "Chess.com"]
[Date "2024.01.30"]
[Round "1"]
[White "GMWSO"]
[Black "Defend1r"]
[Result "1-0"]
[WhiteElo "3099"]
[BlackElo "2537"]
[TimeControl "180+1"]
[EndTime "14:10:07 PST"]
[Termination "GMWSO won by checkmate"]

1. d4 {[%clk 0:03:00.9]} 1... Nf6 {[%clk 0:02:56.6]} 2. c4 {[%clk 0:03:00.7]}
2... e6 {[%clk 0:02:56.8]} 3. Nc3 {[%clk 0:03:00.9]} 3... Bb4 {[%clk 0:02:56.2]}
4. Bd2 {[%clk 0:03:00.3]} 4... c5 {[%clk 0:02:51.1]} 5. a3 {[%clk 0:02:59.6]}
5... Bxc3 {[%clk 0:02:47.7]} 6. Bxc3 {[%clk 0:03:00.5]} 6... Ne4 {[%clk
0:02:47.4]} 7. Rc1 {[%clk 0:02:59.7]} 7... Nxc3 {[%clk 0:02:37.2]} 8. Rxc3
{[%clk 0:03:00.6]} 8... cxd4 {[%clk 0:02:32.7]} 9. Qxd4 {[%clk 0:03:01.5]} 9...
Nc6 {[%clk 0:02:28.4]} 10. Qxg7 {[%clk 0:02:59.9]} 10... Rf8 {[%clk 0:02:25.9]}
11. e3 {[%clk 0:02:56.3]} 11... d5 {[%clk 0:02:03.1]} 12. cxd5 {[%clk
0:02:54.9]} 12... exd5 {[%clk 0:02:02.8]} 13. Bb5 {[%clk 0:02:53.1]} 13... Qd6
{[%clk 0:01:59.3]} 14. Nf3 {[%clk 0:02:49.4]} 14... Bf5 {[%clk 0:01:56.7]} 15.
Qe5+ {[%clk 0:02:43.6]} 15... Qxe5 {[%clk 0:01:42.5]} 16. Nxe5 {[%clk
0:02:44.5]} 16... Bd7 {[%clk 0:01:43]} 17. Nxc6 {[%clk 0:02:41.7]} 17... bxc6
{[%clk 0:01:37.6]} 18. Bxc6 {[%clk 0:02:42.6]} 18... Bxc6 {[%clk 0:01:38.5]} 19.
Rxc6 {[%clk 0:02:43.5]} 19... Kd7 {[%clk 0:01:39.1]} 20. Rc3 {[%clk 0:02:40.3]}
20... Rab8 {[%clk 0:01:33.9]} 21. b3 {[%clk 0:02:34.5]} 21... Rg8 {[%clk
0:01:22.5]} 22. O-O {[%clk 0:02:31.9]} 22... Rb7 {[%clk 0:01:19.3]} 23. Rd1
{[%clk 0:02:31.2]} 23... Ke6 {[%clk 0:01:19.1]} 24. b4 {[%clk 0:02:28.7]} 24...
Rd8 {[%clk 0:01:17.4]} 25. h4 {[%clk 0:02:25.7]} 25... Rd6 {[%clk 0:01:17.2]}
26. Kh2 {[%clk 0:02:25.6]} 26... Rbb6 {[%clk 0:01:07.4]} 27. g4 {[%clk
0:02:24.4]} 27... Ra6 {[%clk 0:01:07.4]} 28. Kg3 {[%clk 0:02:24]} 28... Ra4
{[%clk 0:01:07.3]} 29. Rd4 {[%clk 0:02:22.4]} 29... h6 {[%clk 0:01:04.9]} 30.
Kf4 {[%clk 0:02:17.9]} 30... a5 {[%clk 0:00:53]} 31. b5 {[%clk 0:02:16.5]} 31...
Rxd4+ {[%clk 0:00:47.9]} 32. exd4 {[%clk 0:02:17.4]} 32... Kd7 {[%clk
0:00:46.4]} 33. a4 {[%clk 0:02:16.4]} 33... Re6 {[%clk 0:00:45.7]} 34. Re3
{[%clk 0:02:15.9]} 34... Rf6+ {[%clk 0:00:45.8]} 35. Kg3 {[%clk 0:02:16.1]}
35... Kd6 {[%clk 0:00:44.4]} 36. f4 {[%clk 0:02:15.7]} 36... Rg6 {[%clk
0:00:43.9]} 37. f5 {[%clk 0:02:15.2]} 37... Rg8 {[%clk 0:00:43.5]} 38. Kf4
{[%clk 0:02:13.8]} 38... Rc8 {[%clk 0:00:43.4]} 39. g5 {[%clk 0:02:14.2]} 39...
hxg5+ {[%clk 0:00:40.6]} 40. Kxg5 {[%clk 0:02:15.1]} 40... Rc4 {[%clk
0:00:40.1]} 41. h5 {[%clk 0:02:15.4]} 41... Rc1 {[%clk 0:00:21.4]} 42. h6 {[%clk
0:02:14.6]} 42... Rh1 {[%clk 0:00:20.3]} 43. Rc3 {[%clk 0:02:12.2]} 43... Ke7
{[%clk 0:00:20.1]} 44. b6 {[%clk 0:02:11.4]} 44... f6+ {[%clk 0:00:19.7]} 45.
Kg6 {[%clk 0:02:11]} 45... Rg1+ {[%clk 0:00:19.9]} 46. Kh7 {[%clk 0:02:11.1]}
46... Kd6 {[%clk 0:00:19.7]} 47. Rb3 {[%clk 0:02:06.1]} 47... Re1 {[%clk
0:00:07.4]} 48. b7 {[%clk 0:02:05.8]} 48... Re8 {[%clk 0:00:07.1]} 49. b8=Q+
{[%clk 0:02:05.5]} 49... Ke7 {[%clk 0:00:07.6]} 50. Re3+ {[%clk 0:02:04.5]}
50... Kd7 {[%clk 0:00:07.5]} 51. Qxe8+ {[%clk 0:02:04.1]} 51... Kc7 {[%clk
0:00:08.4]} 52. Kg6 {[%clk 0:02:04.1]} 52... Kb6 {[%clk 0:00:09.3]} 53. h7
{[%clk 0:02:04.9]} 53... Ka6 {[%clk 0:00:09.6]} 54. h8=Q {[%clk 0:02:05.8]}
54... Kb6 {[%clk 0:00:09.6]} 55. Qxf6+ {[%clk 0:02:06.2]} 55... Kb7 {[%clk
0:00:10.5]} 56. Qfe5 {[%clk 0:02:06.4]} 56... Ka7 {[%clk 0:00:10.7]} 57. f6
{[%clk 0:02:07.3]} 57... Kb7 {[%clk 0:00:11.1]} 58. f7 {[%clk 0:02:08.2]} 58...
Kb6 {[%clk 0:00:12]} 59. f8=Q {[%clk 0:02:09.1]} 59... Ka7 {[%clk 0:00:12.8]}
60. Qxd5 {[%clk 0:02:08.4]} 60... Ka6 {[%clk 0:00:13.3]} 61. Qff5 {[%clk
0:02:07.7]} 61... Kb6 {[%clk 0:00:14.2]} 62. Qxa5+ {[%clk 0:02:07.5]} 62... Kb7
{[%clk 0:00:13.9]} 63. Qac5 {[%clk 0:02:04.6]} 63... Ka6 {[%clk 0:00:14]} 64. a5
{[%clk 0:02:04.3]} 64... Kb7 {[%clk 0:00:14.2]} 65. Qf2 {[%clk 0:01:58.8]} 65...
Ka6 {[%clk 0:00:15.1]} 66. Qb4 {[%clk 0:01:56.4]} 66... Ka7 {[%clk 0:00:14.7]}
67. d5 {[%clk 0:01:57]} 67... Ka6 {[%clk 0:00:15.6]} 68. d6 {[%clk 0:01:57.5]}
68... Ka7 {[%clk 0:00:16.5]} 69. d7 {[%clk 0:01:58.1]} 69... Ka6 {[%clk
0:00:17.4]} 70. d8=Q {[%clk 0:01:58.6]} 70... Ka7 {[%clk 0:00:18.3]} 71. Qd1
{[%clk 0:01:54.1]} 71... Ka6 {[%clk 0:00:18.5]} 72. Qfe1 {[%clk 0:01:53.3]}
72... Ka7 {[%clk 0:00:18.8]} 73. Qee4 {[%clk 0:01:52.5]} 73... Ka6 {[%clk
0:00:19.3]} 74. Qec2 {[%clk 0:01:44.7]} 74... Ka7 {[%clk 0:00:19.4]} 75. Qbc4
{[%clk 0:01:44.8]} 75... Ka8 {[%clk 0:00:19.4]} 76. a6 {[%clk 0:01:45]} 76...
Ka7 {[%clk 0:00:19.8]} 77. Ra3 {[%clk 0:01:44.7]} 77... Ka8 {[%clk 0:00:20.2]}
78. a7 {[%clk 0:01:44.5]} 78... Kb7 {[%clk 0:00:20.1]} 79. a8=Q+ {[%clk
0:01:44.4]} 79... Kb6 {[%clk 0:00:20.6]} 80. Qh8 {[%clk 0:01:44.8]} 80... Kb7
{[%clk 0:00:20.9]} 81. Kf5 {[%clk 0:01:45.4]} 81... Kb6 {[%clk 0:00:21.4]} 82.
Ke4 {[%clk 0:01:46.3]} 82... Kb7 {[%clk 0:00:22.2]} 83. Kd3 {[%clk 0:01:47.2]}
83... Kb6 {[%clk 0:00:23]} 84. Kc3 {[%clk 0:01:48.1]} 84... Kb7 {[%clk
0:00:23.8]} 85. Kb4 {[%clk 0:01:48.8]} 85... Kb6 {[%clk 0:00:24.7]} 86. Q2b3
{[%clk 0:01:36.1]} 86... Kb7 {[%clk 0:00:25.6]} 87. Ka4+ {[%clk 0:01:31.2]}
87... Ka7 {[%clk 0:00:25.3]} 88. Qcc3 {[%clk 0:01:30.2]} 88... Ka6 {[%clk
0:00:25.1]} 89. Ra2 {[%clk 0:01:29.6]} 89... Ka7 {[%clk 0:00:24.8]} 90. Qdc2
{[%clk 0:01:29.8]} 90... Ka6 {[%clk 0:00:25.1]} 91. Qec1 {[%clk 0:01:30.2]}
91... Ka7 {[%clk 0:00:25.4]} 92. Q1b2 {[%clk 0:01:30]} 92... Ka6 {[%clk
0:00:25.5]} 93. Qh1 {[%clk 0:01:29]} 93... Ka7 {[%clk 0:00:25.2]} 94. Qhb1
{[%clk 0:01:29.3]} 94... Ka8 {[%clk 0:00:25.4]} 95. Kb4+ {[%clk 0:01:28.5]}
95... Kb7 {[%clk 0:00:25.7]} 96. Kc5+ {[%clk 0:01:28.2]} 96... Kc7 {[%clk
0:00:26.1]} 97. Kd5+ {[%clk 0:01:27.7]} 97... Kd7 {[%clk 0:00:26.5]} 98. Qd4
{[%clk 0:01:15.1]} 98... Ke7 {[%clk 0:00:24.7]} 99. Ke5 {[%clk 0:01:13.5]} 99...
Kf8 {[%clk 0:00:24.1]} 100. Ke6 {[%clk 0:01:10.7]} 100... Kg8 {[%clk 0:00:22.8]}
101. Qce4 {[%clk 0:01:09.1]} 101... Kf8 {[%clk 0:00:23]} 102. Qbe3 {[%clk
0:01:09.3]} 102... Kg8 {[%clk 0:00:23.2]} 103. Qbe2 {[%clk 0:01:10.2]} 103...
Kf8 {[%clk 0:00:23.7]} 104. Qbd3 {[%clk 0:01:10.8]} 104... Ke8 {[%clk
0:00:24.3]} 105. Ra1 {[%clk 0:01:11.5]} 105... Kf8 {[%clk 0:00:24.9]} 106. Rf1+
{[%clk 0:01:11.3]} 106... Ke8 {[%clk 0:00:25.3]} 107. Kf6+ {[%clk 0:01:09.1]}
107... Kf8 {[%clk 0:00:25.7]} 108. Qf5 {[%clk 0:01:04.7]} 108... Kg8 {[%clk
0:00:26.1]} 109. Qef4 {[%clk 0:01:04.6]} 109... Kf8 {[%clk 0:00:26.2]} 110. Qef3
{[%clk 0:01:01.6]} 110... Kg8 {[%clk 0:00:26.2]} 111. Qde5 {[%clk 0:01:01.9]}
111... Kf8 {[%clk 0:00:26.3]} 112. Qde4 {[%clk 0:01:02.7]} 112... Kg8 {[%clk
0:00:26.8]} 113. Rg1+ {[%clk 0:01:01.5]} 113... Kf8 {[%clk 0:00:27.2]} 114. Kg6+
{[%clk 0:01:00.7]} 114... Kg8 {[%clk 0:00:27.7]} 115. Qe7 {[%clk 0:00:31]}
115... Kh8 {[%clk 0:00:27.5]} 116. Rg5 {[%clk 0:00:28.4]} 116... Kg8 {[%clk
0:00:27.7]} 117. Q3g4 {[%clk 0:00:15.6]} 117... Kh8 {[%clk 0:00:28]} 118. Q7e5+
{[%clk 0:00:11.8]} 118... Kg8 {[%clk 0:00:28.4]} 119. Kh6# {[%clk 0:00:10.8]}
1-0

[Event "Late-Titled-Tuesday-Blitz-January-30-2024"]
[Site "Chess.com"]
[Date "2024.01.30"]
[Round "2"]
[White "Narek_Ghimoyan"]
[Black "yaguigor"]
[Result "0-1"]
[WhiteElo "2382"]
[BlackElo "2634"]
[TimeControl "180+1"]
[EndTime "14:11:22 PST"]
[Termination "yaguigor won by resignation"]

1. d4 {[%clk 0:03:00.9]} 1... d5 {[%clk 0:02:58.8]} 2. c4 {[%clk 0:03:01.1]}
2... c6 {[%clk 0:02:58.4]} 3. Nf3 {[%clk 0:03:00.1]} 3... Nf6 {[%clk 0:02:58.5]}
4. Nc3 {[%clk 0:03:00.5]} 4... e6 {[%clk 0:02:58.2]} 5. e3 {[%clk 0:03:00.3]}
5... Nbd7 {[%clk 0:02:57.2]} 6. Bd3 {[%clk 0:03:00.9]} 6... dxc4 {[%clk
0:02:56.5]} 7. Bxc4 {[%clk 0:03:01.8]} 7... b5 {[%clk 0:02:56.6]} 8. Bd3 {[%clk
0:03:01.9]} 8... a6 {[%clk 0:02:56.8]} 9. e4 {[%clk 0:03:01.9]} 9... c5 {[%clk
0:02:57.1]} 10. e5 {[%clk 0:03:01.4]} 10... cxd4 {[%clk 0:02:57]} 11. Nxb5
{[%clk 0:03:01.9]} 11... axb5 {[%clk 0:02:56.3]} 12. exf6 {[%clk 0:03:01.9]}
12... gxf6 {[%clk 0:02:57]} 13. Bxb5 {[%clk 0:02:57.7]} 13... Qa5+ {[%clk
0:02:55.2]} 0-1

[Event "Late-Titled-Tuesday-Blitz-January-30-2024"]
[Site "Chess.com"]
[Date "2024.01.30"]
[Round "2"]
[White "ferdipy"]
[Black "Jagerrmeisterr"]
[Result "0-1"]
[WhiteElo "2406"]
[BlackElo "2721"]
[TimeControl "180+1"]
[EndTime "14:11:59 PST"]
[Termination "Jagerrmeisterr won by checkmate"]

1. e4 {[%clk 0:03:00.9]} 1... c6 {[%clk 0:02:59.2]} 2. d4 {[%clk 0:03:00.9]}
2... d5 {[%clk 0:02:59.2]} 3. exd5 {[%clk 0:03:01.8]} 3... cxd5 {[%clk
0:02:59.1]} 4. Bd3 {[%clk 0:03:02.5]} 4... Nc6 {[%clk 0:02:59.1]} 5. c3 {[%clk
0:03:01.3]} 5... Nf6 {[%clk 0:02:59.3]} 6. Bf4 {[%clk 0:02:59]} 6... g6 {[%clk
0:02:58.8]} 7. Nd2 {[%clk 0:02:45.8]} 7... Bf5 {[%clk 0:02:56.8]} 8. Bxf5 {[%clk
0:02:45.3]} 8... gxf5 {[%clk 0:02:56.9]} 9. Ngf3 {[%clk 0:02:45.2]} 9... e6
{[%clk 0:02:56.9]} 10. Bg5 {[%clk 0:02:44.7]} 10... Be7 {[%clk 0:02:55.1]} 11.
O-O {[%clk 0:02:43.6]} 11... Ne4 {[%clk 0:02:54.2]} 12. Bxe7 {[%clk 0:02:43.2]}
12... Qxe7 {[%clk 0:02:55.1]} 13. Kh1 {[%clk 0:02:43.4]} 13... Rg8 {[%clk
0:02:48.7]} 14. Ne1 {[%clk 0:02:42.5]} 14... Qh4 {[%clk 0:02:47.7]} 15. g3
{[%clk 0:02:39.5]} 15... Qh3 {[%clk 0:02:39.4]} 16. Nxe4 {[%clk 0:02:34.1]}
16... Qxf1# {[%clk 0:02:36.8]} 0-1

[Event "Late-Titled-Tuesday-Blitz-January-30-2024"]
[Site "Chess.com"]
[Date "2024.01.30"]
[Round "2"]
[White "finec2"]
[Black "szachmistrz2500"]
[Result "0-1"]
[WhiteElo "2234"]
[BlackElo "2508"]
[TimeControl "180+1"]
[EndTime "14:12:05 PST"]
[Termination "szachmistrz2500 won by resignation"]

1. d4 {[%clk 0:02:59.9]} 1... Nf6 {[%clk 0:02:57.2]} 2. Bf4 {[%clk 0:02:59.5]}
2... g6 {[%clk 0:02:55.3]} 3. e3 {[%clk 0:02:57.1]} 3... Bg7 {[%clk 0:02:53.9]}
4. Nf3 {[%clk 0:02:55.1]} 4... O-O {[%clk 0:02:52.7]} 5. h3 {[%clk 0:02:54.2]}
5... d6 {[%clk 0:02:52.7]} 6. c4 {[%clk 0:02:53]} 6... b6 {[%clk 0:02:52.8]} 7.
Nc3 {[%clk 0:02:52.5]} 7... Bb7 {[%clk 0:02:52.9]} 8. Bd3 {[%clk 0:02:52]} 8...
Nbd7 {[%clk 0:02:51.6]} 9. O-O {[%clk 0:02:51.1]} 9... Re8 {[%clk 0:02:48.5]}
10. Bh2 {[%clk 0:02:50.6]} 10... e5 {[%clk 0:02:48.4]} 11. Be2 {[%clk
0:02:48.2]} 11... Ne4 {[%clk 0:02:38.9]} 12. Qc2 {[%clk 0:02:35.2]} 12... Nxc3
{[%clk 0:02:34.7]} 13. Qxc3 {[%clk 0:02:32.8]} 13... exd4 {[%clk 0:02:33]} 14.
exd4 {[%clk 0:02:31.6]} 14... Rxe2 {[%clk 0:02:32.1]} 0-1

[Event "Late-Titled-Tuesday-Blitz-January-30-2024"]
[Site "Chess.com"]
[Date "2024.01.30"]
[Round "2"]
[White "Slovineanu"]
[Black "yujiarun18"]
[Result "1-0"]
[WhiteElo "2463"]
[BlackElo "2095"]
[TimeControl "180+1"]
[EndTime "14:12:24 PST"]
[Termination "Slovineanu won by resignation"]

1. d4 {[%clk 0:03:00.9]} 1... d5 {[%clk 0:03:00.2]} 2. Nf3 {[%clk 0:03:00.8]}
2... Nf6 {[%clk 0:03:00.3]} 3. c4 {[%clk 0:03:00.8]} 3... e6 {[%clk 0:03:00.4]}
4. e3 {[%clk 0:03:01]} 4... Be7 {[%clk 0:03:00.6]} 5. b3 {[%clk 0:03:00.6]} 5...
O-O {[%clk 0:03:00.5]} 6. Bd3 {[%clk 0:03:01.2]} 6... b6 {[%clk 0:02:59.9]} 7.
O-O {[%clk 0:03:01]} 7... Bb7 {[%clk 0:03:00.2]} 8. Bb2 {[%clk 0:03:01.6]} 8...
Nbd7 {[%clk 0:03:00.6]} 9. Nc3 {[%clk 0:03:01.6]} 9... dxc4 {[%clk 0:02:59]} 10.
bxc4 {[%clk 0:03:01.5]} 10... c5 {[%clk 0:02:59.3]} 11. Qe2 {[%clk 0:03:01.7]}
11... Rc8 {[%clk 0:02:57.5]} 12. Rad1 {[%clk 0:03:00.7]} 12... Qc7 {[%clk
0:02:55.6]} 13. Ne5 {[%clk 0:02:58.9]} 13... Nxe5 {[%clk 0:02:48.8]} 14. dxe5
{[%clk 0:02:58.7]} 14... Qxe5 {[%clk 0:02:49.4]} 15. Nd5 {[%clk 0:02:48]} 15...
Qd6 {[%clk 0:02:26.2]} 16. Nxf6+ {[%clk 0:02:46.1]} 16... Bxf6 {[%clk
0:02:20.9]} 17. Bxh7+ {[%clk 0:02:43.6]} 17... Kxh7 {[%clk 0:02:13.2]} 18. Rxd6
{[%clk 0:02:43.1]} 1-0

[Event "Late-Titled-Tuesday-Blitz-January-30-2024"]
[Site "Chess.com"]
[Date "2024.01.30"]
[Round "2"]
[White "Pingah9"]
[Black "Jenia84"]
[Result "1-0"]
[WhiteElo "2522"]
[BlackElo "2279"]
[TimeControl "180+1"]
[EndTime "14:12:45 PST"]
[Termination "Pingah9 won by resignation"]

1. e4 {[%clk 0:03:00.9]} 1... c5 {[%clk 0:02:57.7]} 2. Nc3 {[%clk 0:02:59]} 2...
Nc6 {[%clk 0:02:56.3]} 3. g3 {[%clk 0:02:59.3]} 3... g6 {[%clk 0:02:56.6]} 4.
Bg2 {[%clk 0:02:59.5]} 4... Bg7 {[%clk 0:02:56.8]} 5. d3 {[%clk 0:02:58.5]} 5...
d6 {[%clk 0:02:57.1]} 6. Be3 {[%clk 0:02:57.5]} 6... Nf6 {[%clk 0:02:57.1]} 7.
h3 {[%clk 0:02:57.6]} 7... O-O {[%clk 0:02:56.7]} 8. Qd2 {[%clk 0:02:56.7]} 8...
Nd4 {[%clk 0:02:53.7]} 9. Nge2 {[%clk 0:02:55.5]} 9... Nxe2 {[%clk 0:02:50]} 10.
Nxe2 {[%clk 0:02:53.3]} 10... Nd7 {[%clk 0:02:41.7]} 11. c3 {[%clk 0:02:50.8]}
11... Qb6 {[%clk 0:02:38.4]} 12. O-O {[%clk 0:02:46.6]} 12... e5 {[%clk
0:02:32.9]} 13. f4 {[%clk 0:02:45.2]} 13... exf4 {[%clk 0:02:32.4]} 14. Bxf4
{[%clk 0:02:44.4]} 14... Ne5 {[%clk 0:02:31.1]} 15. Kh2 {[%clk 0:02:36.4]} 15...
f5 {[%clk 0:02:25.3]} 16. exf5 {[%clk 0:02:28.4]} 16... Bxf5 {[%clk 0:02:23.6]}
17. d4 {[%clk 0:02:28.3]} 17... cxd4 {[%clk 0:02:20.7]} 18. Nxd4 {[%clk
0:02:26.6]} 18... Nc4 {[%clk 0:02:10.7]} 19. Bd5+ {[%clk 0:02:25.6]} 1-0

[Event "Late-Titled-Tuesday-Blitz-January-30-2024"]
[Site "Chess.com"]
[Date "2024.01.30"]
[Round "2"]
[White "nindjaxx8"]
[Black "Hirna2005"]
[Result "1-0"]
[WhiteElo "2600"]
[BlackElo "2270"]
[TimeControl "180+1"]
[EndTime "14:12:54 PST"]
[Termination "nindjaxx8 won by checkmate"]

1. d4 {[%clk 0:03:00.9]} 1... g6 {[%clk 0:03:00.9]} 2. c4 {[%clk 0:03:00.9]}
2... Bg7 {[%clk 0:03:01.1]} 3. Nc3 {[%clk 0:03:01.3]} 3... d6 {[%clk 0:03:01.6]}
4. e4 {[%clk 0:03:01]} 4... Nc6 {[%clk 0:03:02.2]} 5. Be3 {[%clk 0:03:01]} 5...
e5 {[%clk 0:03:01.9]} 6. d5 {[%clk 0:03:00.8]} 6... Nce7 {[%clk 0:03:02]} 7. Bd3
{[%clk 0:02:59]} 7... f5 {[%clk 0:03:01.9]} 8. exf5 {[%clk 0:02:55.2]} 8... gxf5
{[%clk 0:03:02.1]} 9. Bg5 {[%clk 0:02:53.3]} 9... Nf6 {[%clk 0:02:57]} 10. Bxf6
{[%clk 0:02:52.6]} 10... Bxf6 {[%clk 0:02:57.3]} 11. Qh5+ {[%clk 0:02:53.1]}
11... Kf8 {[%clk 0:02:57.7]} 12. Nge2 {[%clk 0:02:47.2]} 12... a6 {[%clk
0:02:56.5]} 13. O-O-O {[%clk 0:02:46.4]} 13... Qe8 {[%clk 0:02:56.3]} 14. Qh6+
{[%clk 0:02:43.1]} 14... Bg7 {[%clk 0:02:55.5]} 15. Qd2 {[%clk 0:02:43.7]} 15...
Rg8 {[%clk 0:02:49]} 16. f4 {[%clk 0:02:35.7]} 16... Qg6 {[%clk 0:02:41.2]} 17.
Rhg1 {[%clk 0:02:30]} 17... Bh6 {[%clk 0:02:33]} 18. g4 {[%clk 0:02:26.3]} 18...
fxg4 {[%clk 0:02:30.6]} 19. Bxg6 {[%clk 0:02:23.8]} 19... Nxg6 {[%clk
0:02:27.2]} 20. Rdf1 {[%clk 0:02:22.8]} 20... Nxf4 {[%clk 0:02:24.4]} 21. Nxf4
{[%clk 0:02:21.8]} 21... Bxf4 {[%clk 0:02:24.6]} 22. Rxf4+ {[%clk 0:02:22.1]}
22... exf4 {[%clk 0:02:24.9]} 23. Qxf4+ {[%clk 0:02:23]} 23... Kg7 {[%clk
0:02:25]} 24. Rf1 {[%clk 0:02:21.7]} 24... Kh8 {[%clk 0:02:24.4]} 25. Qf6+
{[%clk 0:02:21]} 25... Rg7 {[%clk 0:02:24.7]} 26. Qd8+ {[%clk 0:02:20.3]} 26...
Rg8 {[%clk 0:02:25]} 27. Rf8 {[%clk 0:02:20.3]} 27... Be6 {[%clk 0:02:18.5]} 28.
Qf6# {[%clk 0:02:19.8]} 1-0

[Event "Late-Titled-Tuesday-Blitz-January-30-2024"]
[Site "Chess.com"]
[Date "2024.01.30"]
[Round "2"]
[White "GMthekingindian"]
[Black "Dedic8"]
[Result "0-1"]
[WhiteElo "2411"]
[BlackElo "2812"]
[TimeControl "180+1"]
[EndTime "14:12:55 PST"]
[Termination "Dedic8 won by resignation"]

1. d4 {[%clk 0:03:00.9]} 1... Nf6 {[%clk 0:03:00.1]} 2. c4 {[%clk 0:03:00.2]}
2... e6 {[%clk 0:03:00.6]} 3. Nc3 {[%clk 0:03:00.5]} 3... d5 {[%clk 0:03:00.4]}
4. cxd5 {[%clk 0:02:59.4]} 4... exd5 {[%clk 0:03:01.3]} 5. Bg5 {[%clk
0:02:59.5]} 5... Be7 {[%clk 0:03:02]} 6. e3 {[%clk 0:02:59.6]} 6... h6 {[%clk
0:03:02.6]} 7. Bh4 {[%clk 0:02:59.4]} 7... c6 {[%clk 0:03:02.4]} 8. Bd3 {[%clk
0:02:56.6]} 8... O-O {[%clk 0:03:02.9]} 9. Qc2 {[%clk 0:02:53]} 9... Ne8 {[%clk
0:03:01.8]} 10. Bxe7 {[%clk 0:02:52.3]} 10... Qxe7 {[%clk 0:03:02.7]} 11. Nge2
{[%clk 0:02:51.3]} 11... Nd7 {[%clk 0:02:59.5]} 12. O-O {[%clk 0:02:48.1]} 12...
Ndf6 {[%clk 0:02:59.8]} 13. Rae1 {[%clk 0:02:46.1]} 13... Nd6 {[%clk 0:02:58.2]}
14. f3 {[%clk 0:02:45]} 14... Qxe3+ {[%clk 0:02:57.7]} 15. Kh1 {[%clk
0:02:45.1]} 15... Re8 {[%clk 0:02:51.8]} 16. Qd1 {[%clk 0:02:34.1]} 16... Bf5
{[%clk 0:02:37.9]} 17. Nc1 {[%clk 0:01:52]} 17... Qxd4 {[%clk 0:02:37.7]} 18.
Bxf5 {[%clk 0:01:43.1]} 18... Qxd1 {[%clk 0:02:37.9]} 19. Rxd1 {[%clk 0:01:44]}
19... Nxf5 {[%clk 0:02:38.3]} 0-1

[Event "Late-Titled-Tuesday-Blitz-January-30-2024"]
[Site "Chess.com"]
[Date "2024.01.30"]
[Round "2"]
[White "kaanadayhamle"]
[Black "Rakitic2010"]
[Result "1-0"]
[WhiteElo "2408"]
[BlackElo "2634"]
[TimeControl "180+1"]
[EndTime "14:12:57 PST"]
[Termination "kaanadayhamle won by resignation"]

1. Nf3 {[%clk 0:02:59]} 1... Nf6 {[%clk 0:02:59.8]} 2. d4 {[%clk 0:02:57]} 2...
c5 {[%clk 0:02:59.8]} 3. d5 {[%clk 0:02:57.1]} 3... e6 {[%clk 0:03:00]} 4. dxe6
{[%clk 0:02:55.5]} 4... fxe6 {[%clk 0:03:00.9]} 5. Bg5 {[%clk 0:02:54.9]} 5...
Be7 {[%clk 0:03:00.8]} 6. Nc3 {[%clk 0:02:54.4]} 6... O-O {[%clk 0:03:00.1]} 7.
e4 {[%clk 0:02:54.7]} 7... d5 {[%clk 0:02:59.7]} 8. exd5 {[%clk 0:02:54]} 8...
Nxd5 {[%clk 0:02:58.1]} 9. Bxe7 {[%clk 0:02:54.6]} 9... Qxe7 {[%clk 0:02:57.9]}
10. Bc4 {[%clk 0:02:53.5]} 10... Nc6 {[%clk 0:02:56]} 11. O-O {[%clk 0:02:49.7]}
11... Nxc3 {[%clk 0:02:56]} 12. bxc3 {[%clk 0:02:49.3]} 12... Kh8 {[%clk
0:02:56.9]} 13. Qe2 {[%clk 0:02:48.7]} 13... e5 {[%clk 0:02:56.2]} 14. Rfe1
{[%clk 0:02:47.8]} 14... Bg4 {[%clk 0:02:53.8]} 15. Bd5 {[%clk 0:02:46.2]} 15...
Rad8 {[%clk 0:02:52.8]} 16. Bxc6 {[%clk 0:02:41.6]} 16... bxc6 {[%clk
0:02:50.3]} 17. Qxe5 {[%clk 0:02:42.2]} 17... Qf7 {[%clk 0:02:48.1]} 18. Re3
{[%clk 0:02:35.3]} 18... Qd7 {[%clk 0:02:39.5]} 19. Rae1 {[%clk 0:02:04.2]}
19... Rde8 {[%clk 0:02:27.5]} 20. Qxe8 {[%clk 0:01:57]} 1-0

[Event "Late-Titled-Tuesday-Blitz-January-30-2024"]
[Site "Chess.com"]
[Date "2024.01.30"]
[Round "2"]
[White "MFatigue"]
[Black "miraitrunks"]
[Result "1-0"]
[WhiteElo "2473"]
[BlackElo "2131"]
[TimeControl "180+1"]
[EndTime "14:13:15 PST"]
[Termination "MFatigue won by resignation"]

1. e4 {[%clk 0:03:00.9]} 1... c5 {[%clk 0:02:59.6]} 2. a3 {[%clk 0:03:01.1]}
2... d5 {[%clk 0:02:56.8]} 3. exd5 {[%clk 0:03:00.9]} 3... Qxd5 {[%clk
0:02:57.7]} 4. Nc3 {[%clk 0:03:01.6]} 4... Qd8 {[%clk 0:02:57.8]} 5. Nf3 {[%clk
0:03:02.3]} 5... Nf6 {[%clk 0:02:56.7]} 6. d4 {[%clk 0:03:02.6]} 6... cxd4
{[%clk 0:02:56.8]} 7. Qxd4 {[%clk 0:03:03.5]} 7... Qxd4 {[%clk 0:02:54.8]} 8.
Nxd4 {[%clk 0:03:04.4]} 8... Bd7 {[%clk 0:02:55]} 9. Ncb5 {[%clk 0:03:02.9]}
9... Na6 {[%clk 0:02:53.6]} 10. Be3 {[%clk 0:02:51]} 10... Nd5 {[%clk
0:02:51.3]} 11. O-O-O {[%clk 0:02:46.3]} 11... Nxe3 {[%clk 0:02:50.6]} 12. fxe3
{[%clk 0:02:47.2]} 12... e5 {[%clk 0:02:50.9]} 13. Nf3 {[%clk 0:02:47.9]} 13...
f6 {[%clk 0:02:45.9]} 14. Be2 {[%clk 0:02:39]} 14... Bc5 {[%clk 0:02:22.4]} 15.
Nd6+ {[%clk 0:02:32.1]} 15... Bxd6 {[%clk 0:02:22.2]} 16. Rxd6 {[%clk 0:02:33]}
16... Ke7 {[%clk 0:02:21.8]} 17. Rhd1 {[%clk 0:02:33.6]} 17... Rhd8 {[%clk
0:02:21.6]} 18. Bxa6 {[%clk 0:02:33]} 18... bxa6 {[%clk 0:02:22.3]} 19. Rxa6
{[%clk 0:02:29.3]} 19... Bg4 {[%clk 0:02:18.3]} 20. Rxd8 {[%clk 0:02:29.1]}
20... Rxd8 {[%clk 0:02:19.2]} 21. Rxa7+ {[%clk 0:02:29.2]} 21... Kf8 {[%clk
0:02:19.6]} 22. b4 {[%clk 0:02:21.3]} 22... e4 {[%clk 0:02:18.1]} 23. Nd4 {[%clk
0:02:21.3]} 23... f5 {[%clk 0:02:12.5]} 24. g3 {[%clk 0:02:21.8]} 24... h5
{[%clk 0:02:09.9]} 25. Ne6+ {[%clk 0:02:10.1]} 1-0

[Event "Late-Titled-Tuesday-Blitz-January-30-2024"]
[Site "Chess.com"]
[Date "2024.01.30"]
[Round "2"]
[White "bitter-cikolata"]
[Black "krzyzan94"]
[Result "0-1"]
[WhiteElo "2545"]
[BlackElo "2775"]
[TimeControl "180+1"]
[EndTime "14:13:20 PST"]
[Termination "krzyzan94 won by resignation"]

1. e4 {[%clk 0:03:00.9]} 1... c5 {[%clk 0:02:58.9]} 2. Nf3 {[%clk 0:03:00.8]}
2... d6 {[%clk 0:02:57.6]} 3. d4 {[%clk 0:03:00.2]} 3... cxd4 {[%clk 0:02:58.5]}
4. Nxd4 {[%clk 0:02:58.8]} 4... Nf6 {[%clk 0:02:58.8]} 5. Nc3 {[%clk 0:02:59.2]}
5... a6 {[%clk 0:02:59.2]} 6. Bg5 {[%clk 0:02:59]} 6... Nbd7 {[%clk 0:02:56.1]}
7. Bc4 {[%clk 0:02:58.4]} 7... Qa5 {[%clk 0:02:43.5]} 8. Qd2 {[%clk 0:02:34]}
8... g6 {[%clk 0:02:35.4]} 9. O-O {[%clk 0:02:31.9]} 9... Bg7 {[%clk 0:02:28.9]}
10. Rfe1 {[%clk 0:02:31.1]} 10... O-O {[%clk 0:02:25.4]} 11. Bb3 {[%clk
0:02:31.2]} 11... Nc5 {[%clk 0:01:55.8]} 12. Bxf6 {[%clk 0:01:55]} 12... exf6
{[%clk 0:01:53.1]} 13. Nd5 {[%clk 0:01:53.7]} 13... Qxd2 {[%clk 0:01:48.9]} 0-1